fUST/lending_fUST_20250707
["ID","MTS","AMOUNT","RATE_DAILY","PERIOD"]
[370000130,1751818679027,5000.0,0.00017,2]
[370000131,1751818681364,460.0,0.00016834,2]
[370000132,1751818687107,998.8668303,0.00016359,2]
[370000133,1751818687946,310.11,0.00016834,2]
[370000134,1751818693365,460.0,0.00016832,2]
[370000135,1751818695262,1092.3316089,0.00017,2]
[370000136,1751818695292,3907.6683911,0.00017,2]
[370000137,1751818696728,460.0,0.00016834,2]
[370000138,1751818698085,460.0,0.00016833,2]
[370000139,1751818699670,460.0,0.00016833,2]
[370000140,1751818709813,460.0,0.00016833,2]
[370000141,1751818714275,5000.0,0.00017,2]
[370000142,1751818716850,460.0,0.00016832,2]
[370000143,1751818728034,460.0,0.00016833,2]
[370000144,1751818729213,460.0,0.00016832,2]
[370000145,1751818731283,5000.0,0.00017,2]
[370000146,1751818731432,460.0,0.00016832,2]
[370000147,1751818743261,460.0,0.00016833,2]
[370000148,1751818743705,460.0,0.00016832,2]
[370000149,1751818747127,732.63,0.00016832,2]
[370000150,1751818748582,759.7016089,0.00017,2]
[370000151,1751818748613,4240.2983911,0.00017,2]
[370000152,1751818749659,460.0,0.00016832,2]
[370000153,1751818757969,460.0,0.00016833,2]
[370000154,1751818765278,5000.0,0.00017,2]
[370000156,1751818774333,460.0,0.00016833,2]
[370000157,1751818777675,460.0,0.00016833,2]
[370000158,1751818781885,616.58,0.00016833,2]
[370000159,1751818782193,5000.0,0.00017,2]
[370000162,1751818797561,460.0,0.00016832,2]
[370000163,1751818798659,2843.1216089,0.00017,2]
[370000164,1751818798683,2156.8783911,0.00017,2]
[370000165,1751818807048,460.0,0.00016833,2]
[370000167,1751818812403,914.3,0.00016833,2]
[370000168,1751818817365,5000.0,0.00017,2]
[370000169,1751818833830,5000.0,0.00017,2]
[370000170,1751818842886,460.0,0.00016832,2]
[370000171,1751818844387,529.16,0.00016833,2]
[370000172,1751818846991,460.0,0.00016833,2]
[370000173,1751818852171,5000.0,0.00017,2]
[370000174,1751818852925,19.6616089,0.00016832,2]
[370000175,1751818852951,440.3383911,0.00016832,2]
[370000176,1751818858033,460.0,0.00016833,2]
[370000177,1751818861210,273.344455,0.00016593,2]
[370000178,1751818861538,308.71315321,0.00016594,2]
[370000179,1751818861891,154.35657661,0.00016595,2]
[370000180,1751818868739,5000.0,0.00017,2]
[370000182,1751818875719,460.0,0.00016832,2]
[370000183,1751818875750,460.0,0.00016833,2]
[370000184,1751818876639,460.0,0.00016832,2]
[370000186,1751818884882,5000.0,0.00017,2]
[370000189,1751818901226,5000.0,0.00017,2]
[370000190,1751818904654,460.0,0.00016833,2]
[370000191,1751818906089,460.0,0.00016832,2]
[370000192,1751818911766,795.16,0.00016833,2]
[370000193,1751818918009,268.08742408,0.00017,2]
[370000194,1751818918035,4731.91257592,0.00017,2]
[370000195,1751818920975,460.0,0.00016833,2]
[370000196,1751818933801,460.0,0.00016832,2]
[370000197,1751818934349,5000.0,0.00017,2]
[370000198,1751818951413,5000.0,0.00017,2]
[370000199,1751818954048,460.0,0.00016833,2]
[370000200,1751818965806,460.0,0.00016832,2]
[370000201,1751818967246,460.0,0.00016832,2]
[370000202,1751818967691,460.0,0.00016833,2]
[370000203,1751818967728,2508.08742408,0.00017,2]
[370000204,1751818967751,2491.91257592,0.00017,2]
[370000205,1751818970399,876.2,0.00016832,2]
[370000206,1751818980490,662.33,0.00016833,2]
[370000207,1751818984495,460.0,0.00016832,2]
[370000208,1751818984862,5000.0,0.00017,2]
[370000209,1751818997774,507.11,0.00016832,2]
[370000210,1751819001146,460.0,0.00016833,2]
[370000211,1751819001627,5000.0,0.00017,2]
[370000212,1751819008568,460.0,0.00016832,2]
[370000213,1751819008768,460.0,0.00016833,2]
[370000214,1751819018061,3622.44742408,0.00017,2]
[370000215,1751819018085,1377.55257592,0.00017,2]
[370000216,1751819026644,460.0,0.00016833,2]
[370000217,1751819034278,5000.0,0.00017,2]
[370000218,1751819050604,5000.0,0.00017,2]
[370000219,1751819052828,460.0,0.00016832,2]
[370000220,1751819064142,460.0,0.00016832,2]
[370000221,1751819067662,5000.0,0.00017,2]
[370000223,1751819075766,762.03,0.00016833,2]
[370000224,1751819083010,460.0,0.00016832,2]
[370000225,1751819084170,1020.41742408,0.00017,2]
[370000226,1751819084194,3979.58257592,0.00017,2]
[370000227,1751819101852,5000.0,0.00017,2]
[370000232,1751819118433,5000.0,0.00017,2]
[370000233,1751819127422,460.0,0.00016832,2]
[370000234,1751819127951,460.0,0.00016833,2]
[370000235,1751819130263,634.73,0.00016832,2]
[370000237,1751819134236,4465.68742408,0.00017,2]
[370000238,1751819134261,534.31257592,0.00017,2]
[370000239,1751819137637,460.0,0.00016832,2]
[370000240,1751819151308,5000.0,0.00017,2]
[370000241,1751819168552,5000.0,0.00017,2]
[370000242,1751819185041,460.0,0.00016832,2]
[370000243,1751819185776,5000.0,0.00017,2]
[370000244,1751819187032,460.0,0.00016832,2]
[370000245,1751819201662,3085.68742408,0.00017,2]
[370000246,1751819201686,1914.31257592,0.00017,2]
[370000247,1751819218193,5000.0,0.00017,2]
[370000248,1751819224018,460.0,0.00016832,2]
[370000249,1751819232660,730.28,0.00016832,2]
[370000250,1751819234812,5000.0,0.00017,2]
[370000251,1751819251659,5000.0,0.00017,2]
[370000252,1751819259964,1895.40742408,0.00016324,2]
[370000253,1751819259986,20000.0,0.00016324,2]
[370000254,1751819260009,3004.59257592,0.00016324,2]
[370000255,1751819267747,5000.0,0.00017,2]
[370000257,1751819283772,5000.0,0.00017,2]
[370000258,1751819284629,460.0,0.00016832,2]
[370000259,1751819289539,6535.40742408,0.00016306,2]
[370000260,1751819289567,9645.76074752,0.00016306,2]
[370000261,1751819295513,413.9425439,0.00010618,2]
[370000262,1751819297369,9940.29670858,0.000125,2]
[370000263,1751819297396,1409.62188408,0.000125,2]
[370000264,1751819300242,5000.0,0.00017,2]
[370000265,1751819309066,277.04032035,0.00014114,2]
[370000266,1751819311389,281.87541283,0.0001,2]
[370000267,1751819314730,13031.46238274,0.00016209,2]
[370000268,1751819314754,20000.0,0.00016209,2]
[370000269,1751819314776,20000.0,0.00016209,2]
[370000270,1751819314800,20000.0,0.00016209,2]
[370000271,1751819314823,5169.36528248,0.00016209,2]
[370000272,1751819316937,8521.67105729,0.00017,2]
[370000273,1751819319174,5000.0,0.00017,2]
[370000274,1751819325431,1308.96366023,0.00015,2]
[370000275,1751819325456,5596.96630255,0.00015,2]
[370000276,1751819326454,10000.0,0.00016306,2]
[370000277,1751819327629,4403.03369745,0.0001,2]
[370000278,1751819327651,12372.00302815,0.0001,2]
[370000279,1751819336727,5000.0,0.00017,2]
[370000280,1751819353520,2627.99697185,0.00017,2]
[370000281,1751819353543,2372.00302815,0.00017,2]
[370000282,1751819370400,5000.0,0.00017,2]
[370000291,1751819387149,5000.0,0.00017,2]
[370000292,1751819403094,6118.6326253,0.00017,2]
[370000293,1751819403859,1509.36434655,0.00017,2]
[370000294,1751819403884,3490.63565345,0.00017,2]
[370000295,1751819420765,5000.0,0.00017,2]
[370000320,1751819432024,-300.0,0.00017105,2]
[370000321,1751819432033,-557.05297812,0.00017106,2]
[370000322,1751819432043,-410.30842472,0.00017106,2]
[370000323,1751819432079,200.0,0.00027083,120]
[370000324,1751819432102,-49.69157528,0.00017106,2]
[370000325,1751819432111,-460.0,0.00017106,2]
[370000326,1751819432122,-145.16934454,0.00017106,2]
[370000327,1751819432141,-314.83065546,0.00017106,2]
[370000328,1751819432151,-460.0,0.00017106,2]
[370000329,1751819432160,-634.73,0.00017106,2]
[370000330,1751819432170,-460.0,0.00017106,2]
[370000331,1751819432180,-730.28,0.00017106,2]
[370000332,1751819432191,-460.0,0.00017106,2]
[370000333,1751819432200,-165.95169111,0.00017182,2]
[370000334,1751819432210,-460.0,0.0001728,2]
[370000335,1751819432219,-438.23,0.0001728,2]
[370000336,1751819432228,-408.67765343,0.0001728,2]
[370000337,1751819436995,5000.0,0.00017,2]
[370000340,1751819437880,-51.32234657,0.0001728,2]
[370000341,1751819437891,-432.03276339,0.0001728,2]
[370000342,1751819437903,-27.96723661,0.0001728,2]
[370000343,1751819437913,-431.40839141,0.0001728,2]
[370000344,1751819437924,-32.57814796,0.0001728,2]
[370000345,1751819437934,-460.0,0.0001728,2]
[370000346,1751819437943,-460.0,0.0001728,2]
[370000347,1751819437952,-460.50183444,0.0001728,2]
[370000348,1751819437962,-411.09894128,0.0001728,2]
[370000349,1751819437986,-106.80105872,0.0001728,2]
[370000350,1751819437995,-460.0,0.00017281,2]
[370000351,1751819438004,-460.0,0.00017281,2]
[370000352,1751819438014,-460.0,0.00017281,2]
[370000353,1751819438024,-460.0,0.00017281,2]
[370000354,1751819438033,-578.19305716,0.00017281,2]
[370000355,1751819438042,-460.0,0.00017281,2]
[370000356,1751819438051,-460.0,0.00017281,2]
[370000357,1751819438060,-569.94,0.00017281,2]
[370000358,1751819438069,-770.48,0.00017281,2]
[370000359,1751819438079,-460.0,0.00017281,2]
[370000360,1751819438088,-814.64,0.00017281,2]
[370000361,1751819438101,-460.0,0.00017281,2]
[370000362,1751819438111,-460.0,0.00017281,2]
[370000363,1751819438121,-460.0,0.00017281,2]
[370000364,1751819438130,-707.26,0.00017281,2]
[370000365,1751819438139,-632.09,0.00017281,2]
[370000366,1751819438149,-745.94,0.00017281,2]
[370000367,1751819438160,-460.0,0.00017281,2]
[370000368,1751819438169,-460.0,0.00017281,2]
[370000369,1751819438177,-460.0,0.00017281,2]
[370000370,1751819438187,-460.0,0.00017281,2]
[370000371,1751819438197,-460.0,0.00017281,2]
[370000372,1751819438206,-460.0,0.00017281,2]
[370000373,1751819438216,-460.0,0.00017281,2]
[370000374,1751819438225,-460.0,0.00017281,2]
[370000375,1751819438235,-460.0,0.00017281,2]
[370000376,1751819438244,-460.0,0.00017281,2]
[370000377,1751819438254,-895.37,0.00017281,2]
[370000378,1751819438263,-460.0,0.00017281,2]
[370000379,1751819438272,-460.0,0.00017281,2]
[370000380,1751819438282,-460.0,0.00017281,2]
[370000381,1751819438291,-460.0,0.00017281,2]
[370000382,1751819438300,-460.0,0.00017281,2]
[370000383,1751819438310,-460.0,0.00017281,2]
[370000384,1751819438320,-460.0,0.00017281,2]
[370000385,1751819438329,-460.0,0.00017282,2]
[370000386,1751819438338,-460.0,0.00017282,2]
[370000387,1751819438347,-460.0,0.00017282,2]
[370000388,1751819438357,-460.0,0.00017282,2]
[370000389,1751819438366,-460.0,0.00017282,2]
[370000390,1751819438376,-239.59986534,0.00017282,2]
[370000391,1751819438385,-460.0,0.00017282,2]
[370000392,1751819438394,-449.21444263,0.00017282,2]
[370000393,1751819438404,-460.0,0.00017282,2]
[370000394,1751819438414,-460.0,0.00017282,2]
[370000395,1751819438424,-460.0,0.00017282,2]
[370000396,1751819438433,-1120.56,0.00017282,2]
[370000397,1751819438442,-485.98,0.00017282,2]
[370000398,1751819438452,-460.0,0.00017282,2]
[370000399,1751819438462,-460.0,0.00017282,2]
[370000400,1751819438471,-460.0,0.00017282,2]
[370000401,1751819438480,-460.0,0.00017282,2]
[370000402,1751819438490,-311.25,0.00017282,2]
[370000403,1751819438499,-460.0,0.0001738,2]
[370000404,1751819438508,-460.0,0.0001738,2]
[370000405,1751819438517,-460.0,0.0001738,2]
[370000406,1751819438527,-460.0,0.0001738,2]
[370000407,1751819438536,-634.73,0.0001738,2]
[370000408,1751819438546,-460.0,0.0001738,2]
[370000409,1751819438555,-730.28,0.0001738,2]
[370000410,1751819438565,-460.0,0.0001738,2]
[370000411,1751819438574,-517.9,0.00017554,2]
[370000412,1751819438583,-460.0,0.00017555,2]
[370000413,1751819438593,-569.94,0.00017555,2]
[370000414,1751819438602,-770.48,0.00017555,2]
[370000415,1751819438613,-814.64,0.00017555,2]
[370000416,1751819438622,-460.0,0.00017555,2]
[370000417,1751819438632,-460.0,0.00017555,2]
[370000418,1751819438641,-294.89,0.00017555,2]
[370000419,1751819438651,-707.26,0.00017555,2]
[370000420,1751819438663,-632.09,0.00017555,2]
[370000421,1751819438673,-745.94,0.00017555,2]
[370000422,1751819438682,-460.0,0.00017555,2]
[370000423,1751819438695,-460.0,0.00017555,2]
[370000424,1751819438705,-460.0,0.00017555,2]
[370000425,1751819438714,-460.0,0.00017555,2]
[370000426,1751819438724,-460.0,0.00017555,2]
[370000427,1751819438733,-306.71,0.00017555,2]
[370000428,1751819438743,-460.0,0.00017555,2]
[370000429,1751819438752,-460.0,0.00017555,2]
[370000430,1751819438762,-460.0,0.00017555,2]
[370000431,1751819438771,-522.45,0.00017555,2]
[370000432,1751819438781,-895.37,0.00017555,2]
[370000433,1751819438790,-460.0,0.00017555,2]
[370000434,1751819438800,-460.0,0.00017555,2]
[370000435,1751819438809,-460.0,0.00017555,2]
[370000436,1751819438819,-460.0,0.00017555,2]
[370000437,1751819438828,-460.0,0.00017555,2]
[370000438,1751819438838,-460.0,0.00017555,2]
[370000439,1751819438847,-460.0,0.00017555,2]
[370000440,1751819438857,-460.0,0.00017556,2]
[370000441,1751819438866,-460.0,0.00017556,2]
[370000442,1751819438876,-460.0,0.00017556,2]
[370000443,1751819438885,-460.0,0.00017556,2]
[370000444,1751819438894,-1120.56,0.00017556,2]
[370000445,1751819438904,-485.98,0.00017556,2]
[370000446,1751819438913,-460.0,0.00017556,2]
[370000447,1751819438922,-460.0,0.00017556,2]
[370000448,1751819438932,-460.0,0.00017556,2]
[370000449,1751819438941,-460.0,0.00017556,2]
[370000450,1751819438950,-154.0,0.00017566,2]
[370000451,1751819438959,-154.0,0.00017566,2]
[370000452,1751819438968,-154.0,0.00017566,2]
[370000453,1751819438977,-154.0,0.00017566,2]
[370000454,1751819438986,-154.0,0.00017566,2]
[370000455,1751819438995,-154.0,0.00017566,2]
[370000456,1751819439006,-154.0,0.00017566,2]
[370000457,1751819439015,-460.0,0.00017654,2]
[370000458,1751819439024,-460.0,0.00017654,2]
[370000459,1751819439034,-460.0,0.00017654,2]
[370000460,1751819439043,-460.0,0.00017654,2]
[370000461,1751819439052,-634.73,0.00017654,2]
[370000462,1751819439062,-460.0,0.00017654,2]
[370000463,1751819439071,-730.28,0.00017654,2]
[370000464,1751819439081,-460.0,0.00017654,2]
[370000465,1751819439092,-517.9,0.00017828,2]
[370000466,1751819439102,-460.0,0.00017829,2]
[370000467,1751819439111,-569.94,0.00017829,2]
[370000468,1751819439121,-770.48,0.00017829,2]
[370000469,1751819439131,-814.64,0.00017829,2]
[370000470,1751819439140,-460.0,0.00017829,2]
[370000471,1751819439149,-707.26,0.00017829,2]
[370000472,1751819439160,-632.09,0.00017829,2]
[370000473,1751819439171,-745.94,0.00017829,2]
[370000474,1751819439182,-460.0,0.00017829,2]
[370000475,1751819439191,-460.0,0.00017829,2]
[370000476,1751819439200,-460.0,0.00017829,2]
[370000477,1751819439211,-460.0,0.00017829,2]
[370000478,1751819439220,-460.0,0.00017829,2]
[370000479,1751819439230,-460.0,0.00017829,2]
[370000480,1751819439239,-895.37,0.00017829,2]
[370000481,1751819439248,-460.0,0.00017829,2]
[370000482,1751819439257,-460.0,0.00017829,2]
[370000483,1751819439267,-460.0,0.00017829,2]
[370000484,1751819439276,-460.0,0.00017829,2]
[370000485,1751819439285,-460.0,0.00017829,2]
[370000486,1751819439295,-460.0,0.00017829,2]
[370000487,1751819439305,-460.0,0.00017829,2]
[370000488,1751819439314,-460.0,0.0001783,2]
[370000489,1751819439323,-460.0,0.0001783,2]
[370000490,1751819439334,-460.0,0.0001783,2]
[370000491,1751819439343,-436.06630312,0.0001783,2]
[370000492,1751819439352,-1120.56,0.0001783,2]
[370000493,1751819439360,-485.98,0.0001783,2]
[370000494,1751819439369,-460.0,0.0001783,2]
[370000495,1751819439378,-460.0,0.0001783,2]
[370000496,1751819439387,-460.0,0.0001783,2]
[370000497,1751819439397,-460.0,0.0001783,2]
[370000498,1751819439407,-500.0,0.00017907,2]
[370000499,1751819439416,-460.0,0.00017928,2]
[370000500,1751819439429,-460.0,0.00017928,2]
[370000501,1751819439438,-460.0,0.00017928,2]
[370000502,1751819439448,-460.0,0.00017928,2]
[370000503,1751819439457,-634.73,0.00017928,2]
[370000505,1751819439467,-460.0,0.00017928,2]
[370000507,1751819439477,-730.28,0.00017928,2]
[370000508,1751819439486,-460.0,0.00017928,2]
[370000509,1751819439496,-517.9,0.00018102,2]
[370000510,1751819439505,-500.0,0.00018102,2]
[370000511,1751819439515,-500.0,0.00018102,2]
[370000513,1751819439525,-500.0,0.00018102,2]
[370000514,1751819439536,-500.0,0.00018102,2]
[370000515,1751819439546,-554.16248909,0.00018102,2]
[370000516,1751819439555,-500.0,0.00018102,2]
[370000517,1751819439564,-500.0,0.00018102,2]
[370000518,1751819439574,-500.0,0.00018102,2]
[370000519,1751819439584,-515.5793299,0.00018102,2]
[370000520,1751819439594,-500.0,0.00018102,2]
[370000521,1751819439603,-500.0,0.00018102,2]
[370000522,1751819439611,-500.0,0.00018102,2]
[370000523,1751819439621,-460.0,0.00018103,2]
[370000524,1751819439630,-569.94,0.00018103,2]
[370000525,1751819439640,-770.48,0.00018103,2]
[370000526,1751819439650,-814.64,0.00018103,2]
[370000527,1751819439662,-460.0,0.00018103,2]
[370000528,1751819439672,-707.26,0.00018103,2]
[370000529,1751819439682,-632.09,0.00018103,2]
[370000530,1751819439691,-745.94,0.00018103,2]
[370000531,1751819439700,-460.0,0.00018103,2]
[370000532,1751819439710,-460.0,0.00018103,2]
[370000533,1751819439720,-460.0,0.00018103,2]
[370000534,1751819439730,-460.0,0.00018103,2]
[370000535,1751819439743,-460.0,0.00018103,2]
[370000536,1751819439753,-895.37,0.00018103,2]
[370000537,1751819439762,-460.0,0.00018103,2]
[370000538,1751819439772,-460.0,0.00018103,2]
[370000539,1751819439782,-460.0,0.00018103,2]
[370000540,1751819439791,-460.0,0.00018103,2]
[370000541,1751819439800,-460.0,0.00018103,2]
[370000542,1751819439809,-460.0,0.00018103,2]
[370000543,1751819439819,-200.32531189,0.00018104,2]
[370000544,1751819439828,-460.0,0.00018104,2]
[370000545,1751819439837,-460.0,0.00018104,2]
[370000546,1751819439847,-1120.56,0.00018104,2]
[370000547,1751819439856,-485.98,0.00018104,2]
[370000548,1751819439866,-460.0,0.00018104,2]
[370000549,1751819439875,-460.0,0.00018104,2]
[370000550,1751819439883,-460.0,0.00018104,2]
[370000551,1751819439892,-460.0,0.00018104,2]
[370000552,1751819439901,-460.0,0.00018202,2]
[370000553,1751819439912,-460.0,0.00018202,2]
[370000554,1751819439921,-460.0,0.00018202,2]
[370000555,1751819439931,-460.0,0.00018202,2]
[370000557,1751819439940,-634.73,0.00018202,2]
[370000559,1751819439950,-460.0,0.00018202,2]
[370000560,1751819439960,-730.28,0.00018202,2]
[370000561,1751819439969,-460.0,0.00018202,2]
[370000562,1751819439978,-517.9,0.00018376,2]
[370000563,1751819439988,-460.0,0.00018377,2]
[370000565,1751819439997,-569.94,0.00018377,2]
[370000566,1751819440007,-770.48,0.00018377,2]
[370000567,1751819440016,-814.64,0.00018377,2]
[370000568,1751819440026,-460.0,0.00018377,2]
[370000569,1751819440035,-707.26,0.00018377,2]
[370000570,1751819440045,-632.09,0.00018377,2]
[370000571,1751819440054,-745.94,0.00018377,2]
[370000572,1751819440063,-460.0,0.00018377,2]
[370000573,1751819440072,-460.0,0.00018377,2]
[370000574,1751819440082,-460.0,0.00018377,2]
[370000575,1751819440093,-460.0,0.00018377,2]
[370000576,1751819440103,-460.0,0.00018377,2]
[370000577,1751819440112,-895.37,0.00018377,2]
[370000578,1751819440267,-460.0,0.00018377,2]
[370000579,1751819440278,-460.0,0.00018377,2]
[370000580,1751819440288,-460.0,0.00018377,2]
[370000581,1751819440298,-500.44764828,0.00018377,2]
[370000582,1751819440307,-460.0,0.00018377,2]
[370000583,1751819440317,-460.0,0.00018377,2]
[370000584,1751819440326,-460.0,0.00018378,2]
[370000585,1751819440337,-460.0,0.00018378,2]
[370000586,1751819440347,-1120.56,0.00018378,2]
[370000587,1751819440358,-485.98,0.00018378,2]
[370000588,1751819440367,-460.0,0.00018378,2]
[370000589,1751819440376,-460.0,0.00018378,2]
[370000590,1751819440386,-460.0,0.00018378,2]
[370000591,1751819440395,-460.0,0.00018378,2]
[370000592,1751819440405,-214.03875559,0.00018381,2]
[370000593,1751819440414,-215.18120504,0.00018381,2]
[370000594,1751819440425,-160.0,0.00018381,2]
[370000595,1751819440436,-230.45878613,0.00018381,2]
[370000596,1751819440446,-160.0,0.00018381,2]
[370000597,1751819440456,-160.0,0.00018381,2]
[370000598,1751819440466,-12582.33653824,0.00018381,2]
[370000599,1751819440476,-160.0,0.00018381,2]
[370000600,1751819440485,-160.0,0.00018381,2]
[370000601,1751819440495,-837.69501035,0.00018381,2]
[370000602,1751819440505,-848.15551661,0.00018381,2]
[370000603,1751819440514,-327.953369,0.00018395,2]
[370000604,1751819440524,-171.85329117,0.00018395,2]
[370000605,1751819440534,-501.60636709,0.00018429,2]
[370000606,1751819440544,-288.66192114,0.00018429,2]
[370000607,1751819440553,-460.0,0.00018476,2]
[370000608,1751819440563,-502.23991585,0.00018476,2]
[370000609,1751819440572,-460.0,0.00018476,2]
[370000610,1751819440583,-460.0,0.00018476,2]
[370000611,1751819440593,-634.73,0.00018476,2]
[370000612,1751819440603,-460.0,0.00018476,2]
[370000613,1751819440612,-730.28,0.00018476,2]
[370000614,1751819440622,-460.0,0.00018476,2]
[370000615,1751819440632,-165.95169106,0.00018538,2]
[370000616,1751819440642,-517.9,0.0001865,2]
[370000617,1751819440652,-460.0,0.00018651,2]
[370000618,1751819440662,-569.94,0.00018651,2]
[370000619,1751819440671,-770.48,0.00018651,2]
[370000620,1751819440682,-814.64,0.00018651,2]
[370000621,1751819440693,-460.0,0.00018651,2]
[370000622,1751819440702,-707.26,0.00018651,2]
[370000623,1751819440712,-632.09,0.00018651,2]
[370000624,1751819440721,-745.94,0.00018651,2]
[370000625,1751819440731,-460.0,0.00018651,2]
[370000626,1751819440740,-460.0,0.00018651,2]
[370000627,1751819440750,-460.0,0.00018651,2]
[370000628,1751819440759,-583.66795535,0.00018651,2]
[370000629,1751819440769,-460.0,0.00018651,2]
[370000630,1751819440779,-895.37,0.00018651,2]
[370000631,1751819440788,-460.0,0.00018651,2]
[370000632,1751819440798,-460.0,0.00018651,2]
[370000633,1751819440808,-460.0,0.00018651,2]
[370000634,1751819440818,-230.28,0.00018651,2]
[370000635,1751819440827,-460.0,0.00018651,2]
[370000636,1751819440837,-460.0,0.00018652,2]
[370000637,1751819440847,-460.0,0.00018652,2]
[370000638,1751819440858,-1120.56,0.00018652,2]
[370000639,1751819440868,-485.98,0.00018652,2]
[370000640,1751819440877,-460.0,0.00018652,2]
[370000641,1751819440887,-460.0,0.00018652,2]
[370000642,1751819440896,-460.0,0.00018652,2]
[370000643,1751819440906,-344.62784624,0.00018652,2]
[370000644,1751819440915,-420.0,0.0001868,2]
[370000645,1751819440925,-460.0,0.0001875,2]
[370000646,1751819440934,-460.0,0.0001875,2]
[370000647,1751819440943,-460.0,0.0001875,2]
[370000648,1751819440953,-634.73,0.0001875,2]
[370000649,1751819440962,-460.0,0.0001875,2]
[370000650,1751819440971,-730.28,0.0001875,2]
[370000651,1751819440981,-460.0,0.0001875,2]
[370000652,1751819440990,-250.0,0.00018883,2]
[370000653,1751819440999,-7275.05408866,0.000189,2]
[370000654,1751819441009,-3433.92561963,0.000189,2]
[370000655,1751819441018,-517.9,0.00018924,2]
[370000656,1751819441027,-558.41,0.00018925,2]
[370000657,1751819441037,-569.94,0.00018925,2]
[370000658,1751819441046,-770.48,0.00018925,2]
[370000659,1751819441056,-814.64,0.00018925,2]
[370000660,1751819441066,-460.0,0.00018925,2]
[370000661,1751819441075,-707.26,0.00018925,2]
[370000662,1751819441085,-632.09,0.00018925,2]
[370000663,1751819441098,-745.94,0.00018925,2]
[370000664,1751819441108,-460.0,0.00018925,2]
[370000665,1751819441117,-460.0,0.00018925,2]
[370000666,1751819441127,-460.0,0.00018925,2]
[370000667,1751819441137,-460.0,0.00018925,2]
[370000668,1751819441147,-895.37,0.00018925,2]
[370000669,1751819441157,-460.0,0.00018925,2]
[370000670,1751819441167,-460.0,0.00018925,2]
[370000671,1751819441177,-460.0,0.00018925,2]
[370000672,1751819441187,-460.0,0.00018925,2]
[370000673,1751819441196,-211.48,0.00018926,2]
[370000674,1751819441206,-460.0,0.00018926,2]
[370000675,1751819441216,-1120.56,0.00018926,2]
[370000676,1751819441226,-485.98,0.00018926,2]
[370000677,1751819441236,-460.0,0.00018926,2]
[370000678,1751819441245,-460.0,0.00018926,2]
[370000679,1751819441255,-460.0,0.00018926,2]
[370000680,1751819441264,-250.0,0.0001897,2]
[370000681,1751819441273,-14326.60471851,0.00019,2]
[370000682,1751819441283,-223.80317226,0.00019,20]
[370000683,1751819441292,-151.27645238,0.00019,2]
[370000684,1751819441303,-460.0,0.00019024,2]